[Event "Women Accentus DAQ Blitz 2022"]
[Site "Biel"]
[Date "2022.07.17"]
[Round "8.4"]
[White "Moracchini, Margaux"]
[Black "Sumarriva Paulin, Laura"]
[Result "1-0"]
[ECO "C09"]
[WhiteElo "1937"]
[BlackElo "1913"]
[Annotator "TA"]
[PlyCount "93"]
[EventDate "2022.07.17"]
[EventType "tourn"]
[EventCountry "SUI"]
[SourceTitle "playchess.com"]
[Source "ChessBase"]
[SourceQuality "1"]
[TimeControl "180+2"]

{[%evp 12,93,36,27,31,18,27,22,53,43,53,44,52,13,16,14,23,21,17,-57,-27,-169,-30,-18,54,-51,-34,-147,-128,-122,-119,-113,99,83,112,113,110,113,115,114,116,120,127,118,135,114,116,116,335,125,342,333,997,996,964,464,462,460,451,440,479,445,477,450,483,468,505,464,516,510,601,595,962,768,1037,1020,1291,1253,29979,29980,29980,29979,29982,29982]} 1. e4 {[%emt 0:00:01]} e6 {[%emt 0:00:01]} 2. d4 {[%emt 0:00:03]} d5 {[%emt 0:00:02]} 3. Nd2 {[%emt 0:00:01]} c5 {[%emt 0:00:01]} 4. exd5 {[%emt 0:00:04]} exd5 {[%emt 0:00:02]} 5. Bb5+ {[%emt 0:00:01]} Nc6 {[%emt 0:00:01]} 6. Ngf3 {[%emt 0:00:10]} Qe7+ {[%emt 0:00:02] outshines the older 6...Bd6.} 7. Be2 {[%emt 0:00:04]} Qc7 {[%emt 0:00:02] C09: French Tarrasch: 3...c5 4 exd5 exd5 5 Ngf3 Nc6.} ({Don't take} 7... Nxd4 8. Nxd4 cxd4 9. O-O $16) 8. O-O {[%emt 0:00:09]} Nf6 {[%emt 0:00:04]} 9. Re1 {[%emt 0:00:39]} Be7 {[%emt 0:00:03] The position is equal.} 10. dxc5 {[%emt 0:00:18]} Bxc5 {[%emt 0:00:04]} 11. Nb3 {[%emt 0:00:09]} Be7 {[%emt 0:00:04] [#]} 12. Bb5 $146 {[%emt 0:00:05]} ({Predecessor:} 12. h3 h6 13. Bd3 O-O 14. c3 Re8 15. Bc2 Bd7 16. Be3 Rad8 17. Bc5 Bxc5 18. Nxc5 Rxe1+ 19. Qxe1 {½-½ (46) Gonzalez Vidal,Y (2543)-Harikrishna,P (2743) Tbilisi 2017}) 12... O-O {[%emt 0:00:10]} 13. Bg5 {[%emt 0:00:10]} a6 {[%emt 0:00:07]} 14. Bxc6 {[%emt 0:00:02]} bxc6 {[%emt 0:00:02]} 15. Nbd4 {[%emt 0:00:08]} (15. Qd3 $11) 15... c5 {[%emt 0:00:27]} (15... h6 $5 {[%cal Rh6g5]} 16. Bh4 c5 $15) 16. Nc6 {[%emt 0:00:13]} Qxc6 {[%emt 0:00:12]} ({Black should play} 16... Bd6 $19 17. Bxf6 gxf6 18. Qxd5 Bb7) 17. Rxe7 $11 {[%emt 0:00:01]} Ne4 {[%emt 0:00:15]} (17... h6 $11 18. Bxf6 Qxf6) 18. Bf4 {[%emt 0:00:06]} (18. Ne5 $14 Qa4 {[#]} 19. Nxf7 $1 (19. Qxd5 Be6 $14) 19... Rxf7 20. Rxf7 (20. Qxd5 Nxg5 21. Rxf7 Nxf7 $16) 20... Nxg5 21. Qxd5 Nxf7 22. Qxa8) 18... Bg4 $15 {[%emt 0:00:12]} 19. Rc7 {[%emt 0:00:03]} (19. Re5 $15) 19... Qf6 $17 {[%emt 0:00:14]} 20. Be5 {[%emt 0:00:13]} Qf5 {[%emt 0:00:22] [#] White must now prevent ...Bxf3.} 21. Bg3 {[%emt 0:00:12]} Ng5 $2 {[%emt 0:00:18]} (21... Rae8 $17 {keeps the pressure on.}) 22. Nh4 $16 {[%emt 0:00:21][%cal Bf3h4,Bh4f5,Bf5e7,Be7d5,Bd5e3][%mdl 32] White stays focused until the end.} Bxd1 {[%emt 0:00:10]} 23. Nxf5 {[%emt 0:00:01]} Bxc2 {[%emt 0:00:03]} 24. Ne7+ {[%emt 0:00:02]} Kh8 {[%emt 0:00:01]} 25. Rxc5 {[%emt 0:00:01]} Be4 {[%emt 0:00:11]} 26. Nxd5 {[%emt 0:00:02] Strongly threatening Nb6.} Ne6 {[%emt 0:00:05]} 27. Ra5 {[%emt 0:00:04] White is more active.} Rad8 {[%emt 0:00:14]} 28. Ne3 {[%emt 0:00:01]} Rd2 {[%emt 0:00:08]} 29. b3 {[%emt 0:00:05]} Bd3 $2 {[%emt 0:00:05]} (29... Bb7 $16 {is a better defense.} 30. Nc4 Rd5 31. Rxd5 Bxd5) 30. h3 $2 {[%emt 0:00:07]} (30. Rd5 $18 {and the rest is easy.}) 30... h6 $2 {[%emt 0:00:00]} (30... Nd4 $16 {keeps fighting.} 31. Nc4 Bxc4) 31. Rd5 $18 {[%emt 0:00:01]} Nc7 $2 {[%emt 0:00:14]} (31... Rd8 32. Bd6 Kh7) 32. Bxc7 {[%emt 0:00:02]} Rc8 {[%emt 0:00:02]} 33. Rd8+ {[%emt 0:00:03]} (33. Ba5 $142) 33... Rxd8 {[%emt 0:00:01]} 34. Bxd8 {[%emt 0:00:00]} Be4 {[%emt 0:00:01]} 35. Bh4 {[%emt 0:00:02]} Rd7 {[%emt 0:00:02]} 36. Rc1 {[%emt 0:00:03]} Kh7 {[%emt 0:00:02]} 37. Rd1 {[%emt 0:00:05]} Rc7 {[%emt 0:00:02]} 38. Bg3 {[%emt 0:00:05]} Rc6 {[%emt 0:00:01]} 39. Rd4 {[%emt 0:00:05]} Bg6 {[%emt 0:00:02]} 40. Kh2 {[%emt 0:00:03]} Rc3 {[%emt 0:00:02]} 41. Rd6 {[%emt 0:00:03]} Bd3 {[%emt 0:00:04]} 42. Nd5 {[%emt 0:00:04]} Rc2 {[%emt 0:00:01]} 43. Nb4 {[%emt 0:00:00][%csl LRa6,LRc2,LRd3]} Rd2 {[%emt 0:00:03]} 44. Rxd3 {[%emt 0:00:02]} Rxd3 {[%emt 0:00:02]} 45. Nxd3 {[%emt 0:00:01] White mates.} Kg6 {[%emt 0:00:01]} 46. Nc5 {[%emt 0:00:01]} a5 {[%emt 0:00:01]} 47. Nb7 {[%emt 0:00:06] Weighted Error Value: White=0.49/Black=0.57} 1-0

[Event "Women Accentus DAQ Blitz 2022"]
[Site "Biel"]
[Date "2022.07.17"]
[Round "9.1"]
[White "Moracchini, Margaux"]
[Black "Cornileau, Juliette"]
[Result "0-1"]
[ECO "B19"]
[WhiteElo "1937"]
[BlackElo "1900"]
[Annotator "TA"]
[PlyCount "62"]
[EventDate "2022.07.17"]
[EventType "tourn"]
[EventCountry "SUI"]
[SourceTitle "playchess.com"]
[Source "ChessBase"]
[SourceQuality "1"]
[TimeControl "180+2"]

{[%evp 20,62,0,0,27,-16,0,-27,-25,-30,0,0,31,-18,-16,-19,-32,-137,-154,-189,-162,-162,-145,-276,-270,-314,-196,-201,-194,-235,-98,-99,-94,-87,-80,-224,-220,-29990,-29991,-29991,-29992,-29992,-29986,-29993,-29994]} 1. e4 {[%emt 0:00:01]} c6 {[%emt 0:00:02]} 2. d4 {[%emt 0:00:04]} d5 {[%emt 0:00:02]} 3. Nd2 {[%emt 0:00:01]} dxe4 {[%emt 0:00:01]} 4. Nxe4 {[%emt 0:00:00]} Bf5 {[%emt 0:00:01]} 5. Ng3 {[%emt 0:00:01]} Bg6 {[%emt 0:00:01]} 6. h4 {[%emt 0:00:01]} h6 {[%emt 0:00:01]} 7. h5 {[%emt 0:00:01]} Bh7 {[%emt 0:00:00]} 8. Nf3 {[%emt 0:00:02]} e6 {[%emt 0:00:02]} 9. Bd3 {[%emt 0:00:01]} Bxd3 {[%emt 0:00:01]} 10. Qxd3 {[%emt 0:00:01]} Nf6 {[%emt 0:00:01]} 11. Bd2 {[%emt 0:00:25]} Bd6 {[%emt 0:00:05] B19: Classical Caro-Kann: 4...Bf5 main line.} 12. Ne2 {[%emt 0:00:12]} Qc7 {[%emt 0:00:35]} 13. g3 {[%emt 0:00:03]} Nbd7 {[%emt 0:00:10] Black has an edge.} 14. O-O-O {[%emt 0:00:04]} O-O-O {[%emt 0:00:26]} 15. Bf4 {[%emt 0:00:02] [#]} Nb6 $146 {[%emt 0:00:06]} ({Predecessor:} 15... Rhe8 16. Bxd6 Qxd6 17. Nf4 Nd5 18. Nxd5 exd5 19. Qf5 Qe6 20. Qxe6 Rxe6 21. Rde1 Rde8 22. Kd2 Rxe1 23. Rxe1 Rxe1 24. Kxe1 Kd8 25. g4 Ke7 26. Ke2 {½-½ (26) Roos,C (2100)-Daumen,M (2130) Reil 2011}) 16. c4 {[%emt 0:00:43]} (16. Bxd6 $14 Rxd6 17. Ne5) 16... Bxf4+ {[%emt 0:00:02]} 17. Nxf4 {[%emt 0:00:02]} c5 {[%emt 0:00:07]} 18. Ne2 {[%emt 0:00:16]} (18. Kb1 $15) 18... cxd4 $17 {[%emt 0:00:03]} 19. Nfxd4 {[%emt 0:00:17]} e5 {[%emt 0:00:08]} ({Worse is} 19... Nxc4 20. Kb1 Ne5 21. Qb5 $17) (19... Qxc4+ 20. Qxc4+ Nxc4 21. Kb1) 20. Qf5+ {[%emt 0:00:01]} Kb8 {[%emt 0:00:05]} 21. Nc2 {[%emt 0:00:11]} (21. Nb5 $17 Qxc4+ 22. Nbc3) 21... Nxc4 $19 {[%emt 0:00:34]} 22. Nc3 {[%emt 0:00:00]} Qb6 {[%emt 0:00:13][%csl Gc4][%cal Rb6b2] [#] Inhibits Ne3.} 23. b3 {[%emt 0:00:06]} Qa5 {[%emt 0:00:14]} 24. Na4 {[%emt 0:00:18]} Nb6 {[%emt 0:00:10]} (24... Nd6 $19 25. Qd3 Nde4) 25. Nxb6 $17 {[%emt 0:00:12]} axb6 {[%emt 0:00:01]} ({Reject} 25... Qxb6 $6 26. Rxd8+ Rxd8 27. Qxe5+ Ka8 28. Qf5 $15) 26. Kb1 {[%emt 0:00:14]} Ka7 {[%emt 0:00:15] And now ...Nd5 would win.} 27. Rhe1 {[%emt 0:00:02] This costs White the game.} (27. Ne3 $17 {is a better defense.}) 27... Nd5 $19 {[%emt 0:00:02][%cal Bf6d5,Bd5c3,Bc3d1][%mdl 32] Hoping for ...Nc3+.} 28. Rxe5 $2 {[%emt 0:00:24] [#]} (28. Kb2 $19 Qc3+ 29. Kb1) 28... Nc3+ {[%emt 0:00:02] Black mates.} 29. Kb2 {[%emt 0:00:00]} Nxd1+ {[%emt 0:00:01]} 30. Kc1 {[%emt 0:00:01]} Qd2+ {[%emt 0:00:03]} 31. Kb1 {[%emt 0:00:02]} Qc3 {[%emt 0:00:00] Weighted Error Value: White=0.61/Black=0.25 (precise)} 0-1

[Event "Women Accentus DAQ Blitz 2022"]
[Site "Biel"]
[Date "2022.07.17"]
[Round "9.2"]
[White "Sumarriva Paulin, Laura"]
[Black "Ciarletta, Iris"]
[Result "0-1"]
[ECO "A59"]
[WhiteElo "1913"]
[BlackElo "1717"]
[Annotator "TA"]
[PlyCount "94"]
[EventDate "2022.07.17"]
[EventType "tourn"]
[EventCountry "SUI"]
[SourceTitle "playchess.com"]
[Source "ChessBase"]
[SourceQuality "1"]
[TimeControl "180+2"]

{[%evp 21,94,69,76,58,101,102,137,87,86,68,52,-21,38,26,85,99,110,100,139,63,139,0,18,-47,-46,-26,-39,-56,0,-100,57,-17,-16,-16,-16,-27,112,-69,170,237,654,83,441,434,551,444,1106,882,1978,1811,1141,0,887,0,0,0,0,0,0,-12844,-12844,-12847,-12847,-12848,-12847,-12848,-12848,-12849,-12849,-12850,-12850,-12850,-27999,-27999,-27999]} 1. d4 {[%emt 0:00:02]} Nf6 {[%emt 0:00:01]} 2. c4 {[%emt 0:00:01]} c5 {[%emt 0:00:01]} 3. d5 {[%emt 0:00:02]} b5 {[%emt 0:00:01]} 4. cxb5 {[%emt 0:00:01]} a6 {[%emt 0:00:01]} 5. bxa6 {[%emt 0:00:01]} Bxa6 {[%emt 0:00:00]} 6. Nc3 {[%emt 0:00:02]} d6 {[%emt 0:00:01]} 7. e4 {[%emt 0:00:01]} Bxf1 {[%emt 0:00:01]} 8. Kxf1 {[%emt 0:00:01]} g6 {[%emt 0:00:01]} 9. Nf3 {[%emt 0:00:04]} Bg7 {[%emt 0:00:01]} 10. g3 {[%emt 0:00:01]} O-O {[%emt 0:00:01]} 11. Kg2 {[%emt 0:00:01]} Nbd7 {[%emt 0:00:02][%cal Bb8d7,Bd7b6,Bb6c4,Bc4d2][%mdl 32]} 12. a4 {[%emt 0:00:01] seems to push 12.Re1 aside. A59: Benko/Volga Gambit: White castles by hand.} Nb6 {[%emt 0:00:02]} 13. Qc2 {[%emt 0:00:07] [#]} Nfd7 $146 {[%emt 0:00:01]} ({Predecessor:} 13... Ra6 14. Bg5 Qa8 15. Rhd1 Rb8 16. b3 Rc8 17. Ra2 Qb7 18. h3 Nbd7 19. Nb5 Nb8 20. Qe2 {1-0 (43) Nguyen,H (2492)-Nomin Erdene,D (2314) Kecskemet 2014}) 14. Bd2 {[%emt 0:00:06]} (14. b3 $142) 14... Nc4 $16 {[%emt 0:00:04]} 15. b3 {[%emt 0:00:10]} Nxd2 {[%emt 0:00:02]} 16. Qxd2 {[%emt 0:00:01]} (16. Nxd2 $14 Qa5 17. Rac1) 16... Qb8 {[%emt 0:00:02]} (16... Qa5 $11 17. Rhc1 Qb4) 17. Rab1 $14 {[%emt 0:00:03]} Ne5 {[%emt 0:00:07]} (17... Qb4 18. Nb5 $16) (17... Qb7 $11 {keeps the balance.}) 18. Nxe5 $16 {[%emt 0:00:03]} Bxe5 {[%emt 0:00:02]} 19. Nb5 {[%emt 0:00:02]} Qb7 {[%emt 0:00:04]} 20. h4 {[%emt 0:00:14]} ({White should try} 20. f4 $16 Bg7 21. Qd3) 20... h5 {[%emt 0:00:23]} (20... c4 $1 $14) 21. g4 {[%emt 0:00:23]} (21. f4 $16 Bg7 22. Qd3) 21... Qd7 {[%emt 0:00:01]} (21... c4 $5) 22. Qe2 {[%emt 0:00:08]} (22. f3 $11) 22... Qxg4+ $15 {[%emt 0:00:02]} 23. Qxg4 {[%emt 0:00:02]} hxg4 {[%emt 0:00:02]} 24. h5 {[%emt 0:00:04]} g5 {[%emt 0:00:02]} (24... c4 $15) 25. h6 {[%emt 0:00:18] [#]} (25. Na3 $1 $11 {remains equal.}) 25... f5 $2 {[%emt 0:00:04]} (25... c4 $1 $17 {...Kh7 is the strong threat.} 26. Rh5 (26. bxc4 Rxa4 27. Rh5 Kh7 $17) 26... cxb3 27. Rxb3 (27. Rxg5+ Kh7 $17) 27... Rxa4 28. Rxg5+ Kh7 29. Rxg4 f5) 26. exf5 {[%emt 0:00:09]} ({Better is} 26. Nc7 $14 Rab8 27. Ne6) 26... Rxf5 $11 {[%emt 0:00:01]} 27. Nc7 {[%emt 0:00:03]} Raf8 {[%emt 0:00:09]} 28. Rbf1 {[%emt 0:00:04]} Bd4 {[%emt 0:00:04]} (28... Kh7 $11) 29. Kg3 $2 {[%emt 0:00:17]} ({White should play} 29. Ne6 $16) 29... Rxf2 {[%emt 0:00:27] Black is more active.} (29... Bxf2+ $15 {stays ahead.} 30. Kxg4 Rf4+ 31. Kh5 g4) 30. Rxf2 {[%emt 0:00:06]} (30. h7+ $142 Kh8 31. Rxf2 Bxf2+ 32. Kxg4 Rf4+ 33. Kxg5) 30... Rxf2 $2 {[%emt 0:00:09]} (30... Bxf2+ 31. Kxg4 Rf4+ 32. Kxg5 Be3) 31. Kxg4 $2 $15 {[%emt 0:00:03][%mdl 4096] Endgame KRB-KRN} (31. Ne6 $18) 31... Kh7 $2 {[%emt 0:00:09][%mdl 8192]} (31... Rg2+ $16 32. Kf5 g4) 32. Ne6 $18 {[%emt 0:00:02]} Be3 {[%emt 0:00:05]} 33. Nxg5+ {[%emt 0:00:14]} Bxg5 {[%emt 0:00:03]} (33... Kh8 $142 34. Nf3 Rb2) 34. Kxg5 {[%emt 0:00:02] KR-KR} Rg2+ {[%emt 0:00:11]} 35. Kf5 {[%emt 0:00:03]} Re2 {[%emt 0:00:05]} 36. Rg1 $2 {[%emt 0:00:14]} (36. a5 $18 Re5+ 37. Kg4 Re4+ 38. Kg5 (38. Kf3 Rb4 $18) 38... Re5+ 39. Kf4 Rxd5 40. a6) 36... Kxh6 $2 {[%emt 0:00:03][%mdl 8192] [#]} (36... Re5+ $11 37. Kf4 Rxd5) 37. Rg6+ $2 {[%emt 0:00:01]} (37. a5 $1 $18 {[%cal Ra5a6] Hoping for a6.} Ra2 38. Re1 Rxa5 39. Re6+ (39. Rxe7 Rb5 $18) 39... Kh7 40. Rxe7+ Kh6 41. Ke6) 37... Kh5 $11 {[%emt 0:00:02]} 38. Re6 {[%emt 0:00:03] Against Re5+} Rf2+ {[%emt 0:00:04]} 39. Ke4 {[%emt 0:00:02] And now Kd3 would win.} Rb2 {[%emt 0:00:11]} 40. Rxe7 $2 {[%emt 0:00:11][%mdl 8192]} (40. Kf4 $11) 40... Re2+ $19 {[%emt 0:00:01][%mdl 64] Skewer} 41. Kf5 {[%emt 0:00:07]} Rxe7 {[%emt 0:00:01] KR-K3P} 42. Kf6 {[%emt 0:00:02]} Re5 {[%emt 0:00:04]} 43. a5 {[%emt 0:00:01]} Rxd5 {[%emt 0:00:05]} 44. a6 {[%emt 0:00:05]} Rd1 {[%emt 0:00:02]} 45. Ke6 {[%emt 0:00:03]} Ra1 {[%emt 0:00:01]} 46. a7 {[%emt 0:00:04]} Rxa7 {[%emt 0:00:01]} 47. Kxd6 {[%emt 0:00:02]} Rb7 {[%emt 0:00:01] Weighted Error Value: White=0.99/Black=0.83} 0-1

[Event "Women Accentus DAQ Blitz 2022"]
[Site "Biel"]
[Date "2022.07.17"]
[Round "9.3"]
[White "Keymer, Cecilia"]
[Black "Tamrazyan, Gohar"]
[Result "0-1"]
[ECO "D32"]
[WhiteElo "1652"]
[BlackElo "1916"]
[Annotator "TA"]
[PlyCount "107"]
[EventDate "2022.07.17"]
[EventType "tourn"]
[EventCountry "SUI"]
[SourceTitle "playchess.com"]
[Source "ChessBase"]
[SourceQuality "1"]
[TimeControl "180+2"]

{[%evp 17,107,0,8,-90,-55,-70,-68,-66,-76,-74,22,-104,-109,-100,-36,-42,-49,-91,-24,-35,-7,-16,0,0,0,4,12,0,0,-79,0,0,27,0,0,0,0,0,0,0,0,0,0,2,23,0,27,27,28,39,44,0,0,-70,-78,-581,-565,-574,-389,-441,-410,-1069,-1358,-987,-693,-1328,-1008,-1397,-1460,-1708,-1326,-12835,-12835,-12835,-12835,-12835,-5705,-12839,-12832,-12838,-12838,-29978,-29979,-29978,-29979,-29986,-29987,-29987,-29988,-29992,-29993,-29993]} 1. d4 {[%emt 0:00:01]} d5 {[%emt 0:00:00]} 2. c4 {[%emt 0:00:01]} e6 {[%emt 0:00:01]} 3. Nc3 {[%emt 0:00:02]} c5 {[%emt 0:00:00]} 4. cxd5 {[%emt 0:00:12]} exd5 {[%emt 0:00:01]} 5. Nf3 {[%emt 0:00:01]} Nc6 {[%emt 0:00:01]} 6. Bg5 {[%emt 0:00:05]} Be7 {[%emt 0:00:13]} 7. Bxe7 {[%emt 0:00:03]} Ngxe7 {[%emt 0:00:01]} 8. dxc5 {[%emt 0:00:10]} d4 {[%emt 0:00:03] The main line 8...d4 scores better than 8...Qa5.} 9. Ne4 {[%emt 0:00:19]} O-O $1 {[%emt 0:00:11]} 10. Nd6 {[%emt 0:00:10] D32: Tarrasch Defence: Sidelines and lines without g3.} (10. Rc1 $11 {remains equal.}) 10... Qa5+ $17 {[%emt 0:00:12]} 11. Qd2 {[%emt 0:00:05]} Qxc5 {[%emt 0:00:01]} 12. Nxc8 {[%emt 0:00:08] Black is slightly better.} Raxc8 {[%emt 0:00:01]} 13. Rc1 {[%emt 0:00:03] [#]} Qb4 $146 {[%emt 0:00:22] Black is more active.} (13... Qd6 $17 14. g3 Nb4) ({Predecessor:} 13... Qf5 14. Rd1 Rfd8 15. g4 Qe6 16. Ng5 Qxa2 17. Bg2 d3 18. O-O Qc4 19. exd3 Qxg4 {1-0 (44) Krumina,L (2109)-Golsta,R (1696) Riga 2018}) 14. e3 {[%emt 0:00:29]} (14. g3 $11 {keeps the balance.}) 14... dxe3 {[%emt 0:00:09]} 15. fxe3 {[%emt 0:00:05]} Qxd2+ {[%emt 0:00:07]} ({Better is} 15... Qb6 $17 {[%cal Oe7d5] And now ...Nd5! would win.} 16. Rc3 Rfd8) 16. Kxd2 $15 {[%emt 0:00:06]} Rfd8+ {[%emt 0:00:03]} 17. Ke1 {[%emt 0:00:13]} g6 {[%emt 0:00:16]} (17... Nb4 $17 18. Rxc8 Rxc8) 18. Kf2 $11 {[%emt 0:00:12]} Nb4 {[%emt 0:00:03]} 19. Bc4 $1 {[%emt 0:00:12]} a6 {[%emt 0:00:28]} 20. a3 {[%emt 0:00:06]} Nbd5 {[%emt 0:00:11]} 21. Rhd1 {[%emt 0:00:13]} Nb6 {[%emt 0:00:12]} 22. Be2 {[%emt 0:00:11]} Rxd1 {[%emt 0:00:09]} 23. Rxc8+ {[%emt 0:00:07]} (23. Rxd1 $11 Kg7 24. g3) 23... Nbxc8 {[%emt 0:00:04]} (23... Nexc8 $17 24. Bxd1 Nc4) 24. Bxd1 {[%emt 0:00:01][%mdl 4096] Endgame KBN-KNN} b6 {[%emt 0:00:04]} 25. Nd4 {[%emt 0:00:02]} Nd6 {[%emt 0:00:04]} 26. Be2 {[%emt 0:00:06]} a5 {[%emt 0:00:01]} 27. Kf3 {[%emt 0:00:10]} Kg7 {[%emt 0:00:02]} 28. e4 {[%emt 0:00:04]} Kf6 {[%emt 0:00:06]} 29. Ke3 {[%emt 0:00:08]} h6 {[%emt 0:00:15]} 30. Nf3 {[%emt 0:00:02]} Ke6 {[%emt 0:00:08]} 31. Bd3 {[%emt 0:00:08]} Nc6 {[%emt 0:00:02]} 32. Nd4+ {[%emt 0:00:03]} Nxd4 {[%emt 0:00:04]} 33. Kxd4 {[%emt 0:00:01] KB-KN} f6 {[%emt 0:00:06][%cal Bf7f6,Bf6f5,Bf5e4][%mdl 32] Against e5} 34. Ke3 {[%emt 0:00:06]} (34. Bc4+ $5 Kd7 35. Be2 $14) 34... Ke5 {[%emt 0:00:00]} 35. Bc2 {[%emt 0:00:02]} ({White should play} 35. b4 $11) 35... Nc4+ $15 {[%emt 0:00:02]} 36. Kf3 $2 {[%emt 0:00:04][%mdl 8192] Now White is beyond hope.} (36. Kd3 $17 b5 37. Kc3) 36... Nxb2 $19 {[%emt 0:00:01]} 37. Bb3 {[%emt 0:00:01]} Nd3 {[%emt 0:00:04] [#] Hoping for ...Kd4.} 38. Bd5 {[%emt 0:00:02]} f5 {[%emt 0:00:07] White must now prevent ...Kd4.} 39. Bc4 {[%emt 0:00:02]} (39. Ba8 $142 f4 40. a4) 39... fxe4+ {[%emt 0:00:03]} 40. Ke3 {[%emt 0:00:01]} Nc5 {[%emt 0:00:03] Strongly threatening ...Na4.} 41. Bf7 {[%emt 0:00:02]} g5 {[%emt 0:00:01]} 42. g3 {[%emt 0:00:02]} Nd7 {[%emt 0:00:03] aiming for ...b5.} 43. Bb3 {[%emt 0:00:04]} Nf6 {[%emt 0:00:04]} 44. Bc2 {[%emt 0:00:02]} Ng4+ {[%emt 0:00:03]} 45. Ke2 {[%emt 0:00:02]} Nxh2 {[%emt 0:00:01]} 46. Kf2 {[%emt 0:00:01]} Ng4+ {[%emt 0:00:02]} 47. Ke2 {[%emt 0:00:01]} Kd4 {[%emt 0:00:01]} 48. Ke1 {[%emt 0:00:02]} Ke3 {[%emt 0:00:01]} 49. Kf1 {[%emt 0:00:03]} Kf3 {[%emt 0:00:01] Black mates.} 50. Ke1 {[%emt 0:00:01]} e3 {[%emt 0:00:02]} 51. Kf1 {[%emt 0:00:01]} e2+ {[%emt 0:00:01]} 52. Ke1 {[%emt 0:00:01]} Ne3 {[%emt 0:00:07]} 53. Bd3 {[%emt 0:00:03]} Ng2+ {[%emt 0:00:01]} 54. Kd2 {[%emt 0:00:02] Weighted Error Value: White=1.00/Black=0.39} 0-1

[Event "Women Accentus DAQ Blitz 2022"]
[Site "Biel"]
[Date "2022.07.17"]
[Round "10.1"]
[White "Cornileau, Juliette"]
[Black "Avilova, Yulia"]
[Result "0-1"]
[ECO "D35"]
[WhiteElo "1900"]
[BlackElo "1646"]
[Annotator "TA"]
[PlyCount "64"]
[EventDate "2022.07.17"]
[EventType "tourn"]
[EventCountry "SUI"]
[SourceTitle "playchess.com"]
[Source "ChessBase"]
[SourceQuality "1"]
[TimeControl "180+2"]

{[%evp 17,64,40,53,0,19,-22,11,-21,29,14,75,28,200,154,137,114,134,2,78,69,176,156,190,177,385,-124,-130,-377,-59,-69,919,78,57,0,0,0,0,-108,0,0,0,0,0,-95,-87,-85,-100,-1032,-586]} 1. d4 {[%emt 0:00:02]} d5 {[%emt 0:00:01]} 2. c4 {[%emt 0:00:01]} e6 {[%emt 0:00:01]} 3. Nc3 {[%emt 0:00:01]} Nf6 {[%emt 0:00:03]} 4. cxd5 {[%emt 0:00:02]} exd5 {[%emt 0:00:01]} 5. Bg5 {[%emt 0:00:01]} Be7 {[%emt 0:00:01]} 6. e3 {[%emt 0:00:01]} O-O {[%emt 0:00:02]} 7. Bd3 {[%emt 0:00:07]} Nbd7 {[%emt 0:00:01]} 8. Nge2 {[%emt 0:00:03]} b6 {[%emt 0:00:01] 8...c6 gains popularity.} 9. O-O {[%emt 0:00:04]} Bb7 {[%emt 0:00:01]} 10. f3 {[%emt 0:00:01] D35: Queen's Gambit Declined: Exchange Variation.} (10. Ng3 $14) 10... c5 {[%emt 0:00:08]} (10... Nh5 $5 {[%cal Re7g5]} 11. Bxe7 Qxe7 $11) 11. Kh1 {[%emt 0:00:03] [#]} Kh8 $146 {[%emt 0:00:01]} ({Predecessor:} 11... Re8 12. dxc5 Nxc5 13. Bb5 Rf8 14. Nf4 h6 15. Bxf6 Bxf6 16. Nfxd5 Bxd5 17. Nxd5 Bxb2 {1-0 (58) Yellamraju,A-Velea,A Montevideo 2016}) 12. Qc2 {[%emt 0:00:30] The position is equal.} h6 {[%emt 0:00:09]} (12... Nh5 $142 $1 13. Bxe7 Qxe7) 13. Bf4 {[%emt 0:00:01]} g5 {[%emt 0:00:07]} (13... Re8 $11) 14. Be5 {[%emt 0:00:04]} ({Better is} 14. Bg3 $16) 14... Rg8 $2 {[%emt 0:00:13]} (14... Nxe5 $11 {and Black stays safe.} 15. dxe5 Nh5) 15. Ng3 {[%emt 0:00:02]} Nxe5 {[%emt 0:00:19]} 16. dxe5 {[%emt 0:00:01]} Nd7 {[%emt 0:00:02]} 17. Nf5 {[%emt 0:00:05]} (17. Rad1 $16) 17... Nxe5 {[%emt 0:00:18]} (17... Qf8 $1 $11) 18. Nxh6 $16 {[%emt 0:00:03] Threatens to win with f4.} Rf8 {[%emt 0:00:19]} (18... Rg7 $1 $14) 19. f4 $18 {[%emt 0:00:22]} Nxd3 {[%emt 0:00:02]} 20. Qxd3 {[%emt 0:00:01] Strongly threatening fxg5.} d4 $2 {[%emt 0:00:10]} (20... Qd7) 21. Ne2 $2 {[%emt 0:00:35] Pair of Knights!} ({White has to play} 21. exd4 $18 Qd7 22. d5) 21... Qd5 $17 {[%emt 0:00:15][%csl Gb7][%cal Rd5g2]} 22. Rg1 {[%emt 0:00:01] [#]} (22. e4 $17 Qxe4 23. Qxe4 Bxe4 24. Ng3) 22... Rae8 $2 {[%emt 0:00:21]} (22... Qe6 $1 $19 {[%cal Re6h6]} 23. Nf5 Be4) 23. exd4 $15 {[%emt 0:00:19]} gxf4 $2 {[%emt 0:00:05][%mdl 8192]} (23... Bc8 $15 24. Ng3 f5) 24. Nxf4 $2 {[%emt 0:00:09]} (24. Qh3 $18 {is the precise move to win. Nf5+ would kill now.} Qc6 25. Nxf4) 24... Qxd4 $16 {[%emt 0:00:02] [#]} 25. Qh3 $1 {[%emt 0:00:06]} Qxf4 $11 {[%emt 0:00:11]} 26. Nf5+ {[%emt 0:00:11]} Kg8 {[%emt 0:00:08]} 27. Nh6+ {[%emt 0:00:19]} (27. Raf1 $11 {was the only way to keep the balance.} Qg5 28. Rf3 Bxf3 29. gxf3 Qxg1+ 30. Kxg1) 27... Kh8 {[%emt 0:00:07]} (27... Kh7 $17 28. Nf5+ Kg6) 28. Nf5+ {[%emt 0:00:16]} Kg8 {[%emt 0:00:01][%cal Bh8g8,Bg8g7,Bg7g6][%mdl 32]} 29. Raf1 {[%emt 0:00:20]} Qg5 {[%emt 0:00:02]} 30. Nh6+ {[%emt 0:00:02]} (30. Rf3 $1 $11 {remains equal.} Bxf3 31. gxf3 Qxg1+ 32. Kxg1) 30... Kg7 {[%emt 0:00:09]} 31. Nf5+ {[%emt 0:00:02]} Kg6 {[%emt 0:00:06] And now ...Be4 would win.} ({Much worse is} 31... Kg8 $6 32. Rf3 Bxf3 33. gxf3 Qxg1+ 34. Kxg1 $11) 32. Ng3 {[%emt 0:00:07][%mdl 8192] Prevents Be4.} (32. Qd3 $17 Bf6 33. Nd6+ Kg7 34. Rf3) 32... Bc8 {[%emt 0:00:00] Black used his chance.  Weighted Error Value: White=1.18/Black=0.80} 0-1